fUSD/lending_fUSD_20260528
["ID","MTS","AMOUNT","RATE_DAILY","PERIOD"]
[423217019,1779940240000,-500.0,0.00014999,2]
[423217022,1779940240000,-500.0,0.00014999,2]
[423217021,1779940240000,-500.0,0.00014999,2]
[423217026,1779940240000,-500.0,0.00014999,2]
[423217028,1779940240000,-500.0,0.00014999,2]
[423217029,1779940240000,-500.0,0.00014999,2]
[423217027,1779940240000,-500.0,0.00014999,2]
[423217030,1779940240000,-500.0,0.00014999,2]
[423217036,1779940240000,-500.0,0.00014999,2]
[423217035,1779940240000,-500.0,0.00014999,2]
[423217037,1779940240000,-500.0,0.00014999,2]
[423217034,1779940240000,-500.0,0.00014999,2]
[423217033,1779940240000,-500.0,0.00014999,2]
[423217031,1779940240000,-500.0,0.00014999,2]
[423217032,1779940240000,-500.0,0.00014999,2]
[423217039,1779940240000,-243.09918433,0.00014999,2]
[423217038,1779940240000,-500.0,0.00014999,2]
[423217040,1779940240000,-500.0,0.00014999,2]
[423217044,1779940240000,-13037063.45058653,0.00015,2]
[423217043,1779940240000,-199.3631312,0.00014999,2]
[423217041,1779940240000,-500.0,0.00014999,2]
[423217042,1779940240000,-325.84,0.00014999,2]
[423217000,1779940240000,-500.0,0.00014999,2]
[423217020,1779940240000,-508.12887939,0.00014999,2]
[423217017,1779940240000,-500.0,0.00014999,2]
[423217023,1779940240000,-500.0,0.00014999,2]
[423217018,1779940240000,-500.0,0.00014999,2]
[423216993,1779940240000,-500.0,0.00014999,2]
[423216992,1779940240000,-500.0,0.00014999,2]
[423216996,1779940240000,-500.0,0.00014999,2]
[423216991,1779940240000,-500.0,0.00014999,2]
[423216995,1779940240000,-500.0,0.00014999,2]
[423216998,1779940240000,-500.0,0.00014999,2]
[423216997,1779940240000,-500.0,0.00014999,2]
[423217002,1779940240000,-500.0,0.00014999,2]
[423217003,1779940240000,-500.0,0.00014999,2]
[423217015,1779940240000,-500.0,0.00014999,2]
[423217006,1779940240000,-500.0,0.00014999,2]
[423217004,1779940240000,-510.00564185,0.00014999,2]
[423217005,1779940240000,-336.14704349,0.00014999,2]
[423217008,1779940240000,-500.0,0.00014999,2]
[423217016,1779940240000,-500.0,0.00014999,2]
[423217011,1779940240000,-500.0,0.00014999,2]
[423217025,1779940240000,-500.0,0.00014999,2]
[423217024,1779940240000,-500.0,0.00014999,2]
[423217013,1779940240000,-500.0,0.00014999,2]
[423217007,1779940240000,-500.0,0.00014999,2]
[423217012,1779940240000,-500.0,0.00014999,2]
[423217009,1779940240000,-500.0,0.00014999,2]
[423217010,1779940240000,-500.0,0.00014999,2]
[423217014,1779940240000,-500.0,0.00014999,2]
[423217046,1779940242000,-534.20501834,0.00015,2]
[423217109,1779940243000,-428.3647939,0.00015,2]
[423217103,1779940243000,-671.62652613,0.00015,2]
[423217108,1779940243000,-2904188.54511038,0.00015,2]
[423217110,1779940243000,-166.05,0.00015,2]
[423217113,1779940243000,-2000.0,0.00015,2]
[423217112,1779940243000,-190.70808778,0.00015,2]
[423217116,1779940243000,-900.0,0.00015068,2]
[423217114,1779940243000,-200.0,0.00015,2]
[423217117,1779940243000,-2000.0,0.00015108,2]
[423217118,1779940243000,-200.0,0.0001515,2]
[423217111,1779940243000,-200.0,0.00015,2]
[423217178,1779940244000,-439.07868534,0.000184,2]
[423217149,1779940244000,-376.11,0.00017099,2]
[423217150,1779940244000,-1040.62414813,0.000171,2]
[423217147,1779940244000,-1040.62414813,0.000169,2]
[423217153,1779940244000,-1197.0,0.0001726,2]
[423217152,1779940244000,-250.40384818,0.00017243,2]
[423217154,1779940244000,-229.226917,0.0001726,2]
[423217159,1779940244000,-255.67,0.00017611,2]
[423217155,1779940244000,-179.92,0.00017264,2]
[423217157,1779940244000,-1040.62414813,0.000174,2]
[423217156,1779940244000,-1040.62414813,0.000173,2]
[423217170,1779940244000,-287.48779769,0.00018,2]
[423217161,1779940244000,-166.05,0.000178,2]
[423217160,1779940244000,-1040.62414813,0.000178,2]
[423217167,1779940244000,-439.07868534,0.00018,2]
[423217169,1779940244000,-1040.62414813,0.00018,2]
[423217173,1779940244000,-1040.62414813,0.000181,2]
[423217172,1779940244000,-350.0,0.00018,2]
[423217162,1779940244000,-3292.0,0.00017836,2]
[423217165,1779940244000,-26279.92451114,0.00018,2]
[423217174,1779940244000,-439.07868534,0.000182,2]
[423217186,1779940244000,-439.07868534,0.000185,2]
[423217158,1779940244000,-1040.62414813,0.000176,2]
[423217143,1779940244000,-1040.62414813,0.000166,2]
[423217144,1779940244000,-168.11,0.00016712,2]
[423217151,1779940244000,-162.21,0.00017215,2]
[423217120,1779940244000,-160.75,0.00015238,2]
[423217130,1779940244000,-155.36,0.00016025,2]
[423217122,1779940244000,-376.11,0.00015389,2]
[423217126,1779940244000,-433.0,0.00015751,2]
[423217124,1779940244000,-160.75,0.00015682,2]
[423217121,1779940244000,-200.0,0.00015301,2]
[423217123,1779940244000,-200.0,0.00015455,2]
[423217128,1779940244000,-300.0,0.00016,2]
[423217129,1779940244000,-227.21135545,0.00016,2]
[423217131,1779940244000,-227.21135545,0.000161,2]
[423217142,1779940244000,-12471.87833607,0.000165,2]
[423217134,1779940244000,-227.21135545,0.000162,2]
[423217139,1779940244000,-940.0,0.00016438,2]
[423217137,1779940244000,-1197.0,0.00016438,2]
[423217136,1779940244000,-1549.6,0.00016438,2]
[423217135,1779940244000,-2351.0,0.00016214,2]
[423217138,1779940244000,-322.45053788,0.00016438,2]
[423217140,1779940244000,-900.0,0.00016438,2]
[423217141,1779940244000,-6616.87961098,0.000165,2]
[423217148,1779940244000,-736.0,0.00017054,2]
[423217146,1779940244000,-1040.62414813,0.000168,2]
[423217145,1779940244000,-2000.0,0.00016786,2]
[423217133,1779940244000,-3855.33,0.00016116,2]
[423217176,1779940244000,-287.48779769,0.000182,2]
[423217185,1779940244000,-1252.0,0.00018477,2]
[423217179,1779940244000,-287.48779769,0.000184,2]
[423217209,1779940244000,-500.0,0.00019305,2]
[423217211,1779940244000,-162.21,0.00019675,2]
[423217214,1779940244000,-5284.10140603,0.0002,2]
[423217216,1779940244000,-1005.93368335,0.0002,2]
[423217213,1779940244000,-501.34381452,0.00019885,2]
[423217215,1779940244000,-199.29868437,0.0002,2]
[423217219,1779940244000,-156.0,0.0002,2]
[423217217,1779940244000,-1000.0,0.0002,2]
[423217220,1779940244000,-1256.0,0.0002,2]
[423217218,1779940244000,-5885.80955307,0.0002,2]
[423217208,1779940244000,-155.36,0.0001923,2]
[423217212,1779940244000,-1022.0,0.00019835,2]
[423217223,1779940244000,-155.0,0.0002,2]
[423217224,1779940244000,-510.0,0.0002,2]
[423217225,1779940244000,-165.87724896,0.0002,2]
[423217227,1779940244000,-184.0,0.0002,2]
[423217226,1779940244000,-1191.0,0.0002,2]
[423217228,1779940244000,-500.0,0.0002,2]
[423217230,1779940244000,-400.0,0.0002,2]
[423217229,1779940244000,-613.04222186,0.0002,2]
[423217232,1779940244000,-5985.0,0.0002,2]
[423217231,1779940244000,-1762.0,0.0002,2]
[423217222,1779940244000,-675.0,0.0002,2]
[423217206,1779940244000,-150.0,0.00019178,2]
[423217221,1779940244000,-227.0,0.0002,2]
[423217210,1779940244000,-2467.0,0.00019619,2]
[423217184,1779940244000,-2000.0,0.00018465,2]
[423217205,1779940244000,-150.0,0.00019178,2]
[423217182,1779940244000,-1549.6,0.0001841,2]
[423217183,1779940244000,-1022.0,0.00018465,2]
[423217188,1779940244000,-439.07868534,0.000187,2]
[423217198,1779940244000,-163.12506766,0.00019,2]
[423217194,1779940244000,-781.2,0.00018926,2]
[423217191,1779940244000,-2302.39,0.000188,2]
[423217190,1779940244000,-665.47,0.000188,2]
[423217195,1779940244000,-2500.0,0.00019,2]
[423217192,1779940244000,-2643.82,0.000188,2]
[423217187,1779940244000,-287.48779769,0.000185,2]
[423217199,1779940244000,-1022.0,0.0001915,2]
[423217204,1779940244000,-150.0,0.00019178,2]
[423217196,1779940244000,-46773.88811898,0.00019,2]
[423217202,1779940244000,-250.0,0.00019178,2]
[423217207,1779940244000,-210.92564094,0.00019178,2]
[423217201,1779940244000,-250.0,0.00019178,2]
[423217203,1779940244000,-264.18629754,0.00019178,2]
[423217200,1779940244000,-250.0,0.00019178,2]
[423217193,1779940244000,-376.11,0.00018809,2]
[423217197,1779940244000,-46773.88811898,0.00019,2]
[423217189,1779940244000,-287.48779769,0.000187,2]
[423217270,1779940245000,-151.0,0.00021175,2]
[423217280,1779940245000,-500.0,0.00021175,2]
[423217275,1779940245000,-151.0,0.00021175,2]
[423217273,1779940245000,-151.0,0.00021175,2]
[423217274,1779940245000,-500.0,0.00021175,2]
[423217269,1779940245000,-151.0,0.00021175,2]
[423217265,1779940245000,-151.0,0.00021175,2]
[423217264,1779940245000,-151.0,0.00021175,2]
[423217266,1779940245000,-151.0,0.00021175,2]
[423217267,1779940245000,-2080.17592889,0.00021175,2]
[423217277,1779940245000,-500.0,0.00021175,2]
[423217268,1779940245000,-151.0,0.00021175,2]
[423217279,1779940245000,-151.0,0.00021175,2]
[423217287,1779940245000,-151.0,0.00021175,2]
[423217278,1779940245000,-151.0,0.00021175,2]
[423217283,1779940245000,-151.0,0.00021175,2]
[423217276,1779940245000,-151.0,0.00021175,2]
[423217282,1779940245000,-500.0,0.00021175,2]
[423217285,1779940245000,-500.0,0.00021175,2]
[423217284,1779940245000,-151.0,0.00021175,2]
[423217286,1779940245000,-151.0,0.00021175,2]
[423217288,1779940245000,-500.0,0.00021175,2]
[423217297,1779940245000,-500.0,0.00021175,2]
[423217290,1779940245000,-151.0,0.00021175,2]
[423217294,1779940245000,-500.0,0.00021175,2]
[423217291,1779940245000,-500.0,0.00021175,2]
[423217263,1779940245000,-151.0,0.00021175,2]
[423217281,1779940245000,-151.0,0.00021175,2]
[423217271,1779940245000,-500.0,0.00021175,2]
[423217242,1779940245000,-150.0,0.0002058,2]
[423217262,1779940245000,-151.0,0.00021175,2]
[423217233,1779940245000,-2000.0,0.0002,7]
[423217235,1779940245000,-2129.0,0.00020008,2]
[423217245,1779940245000,-166.05,0.000207,2]
[423217234,1779940245000,-3292.0,0.0002,2]
[423217246,1779940245000,-15000.0,0.00021,2]
[423217237,1779940245000,-1549.6,0.00020381,2]
[423217289,1779940245000,-151.0,0.00021175,2]
[423217239,1779940245000,-624.404731,0.0002052,2]
[423217241,1779940245000,-150.0,0.0002058,2]
[423217236,1779940245000,-2000.0,0.00020144,2]
[423217240,1779940245000,-4107.09,0.00020548,2]
[423217238,1779940245000,-376.11,0.00020519,2]
[423217244,1779940245000,-168.11,0.00020639,2]
[423217243,1779940245000,-168.7807795,0.0002058,2]
[423217248,1779940245000,-15000.0,0.00021,2]
[423217259,1779940245000,-151.0,0.00021175,2]
[423217258,1779940245000,-184.0,0.00021,2]
[423217257,1779940245000,-1191.0,0.00021,2]
[423217256,1779940245000,-510.0,0.00021,2]
[423217249,1779940245000,-522.0534976,0.00021,2]
[423217250,1779940245000,-155.33809958,0.00021,2]
[423217253,1779940245000,-227.0,0.00021,2]
[423217252,1779940245000,-1256.0,0.00021,2]
[423217247,1779940245000,-6111.0,0.00021,2]
[423217251,1779940245000,-156.0,0.00021,2]
[423217255,1779940245000,-158.20398155,0.00021,2]
[423217254,1779940245000,-675.0,0.00021,2]
[423217261,1779940245000,-151.0,0.00021175,2]
[423217272,1779940245000,-151.0,0.00021175,2]
[423217260,1779940245000,-200.0,0.00021175,2]
[423217295,1779940245000,-151.0,0.00021175,2]
[423217318,1779940245000,-151.0,0.00021991,2]
[423217293,1779940245000,-151.0,0.00021175,2]
[423217336,1779940245000,-3574.804,0.0002212,2]
[423217327,1779940245000,-510.0,0.00022,2]
[423217334,1779940245000,-478.44,0.00022108,2]
[423217332,1779940245000,-478.44,0.0002203,2]
[423217329,1779940245000,-184.0,0.00022,2]
[423217338,1779940245000,-1278.805,0.0002212,2]
[423217349,1779940245000,-478.44,0.00022345,2]
[423217348,1779940245000,-2236.95670847,0.00022271,2]
[423217344,1779940245000,-162.21,0.00022134,2]
[423217339,1779940245000,-525.0,0.0002212,2]
[423217337,1779940245000,-928.0,0.0002212,2]
[423217347,1779940245000,-200.0,0.00022271,2]
[423217343,1779940245000,-6064.0,0.0002212,2]
[423217331,1779940245000,-435.92,0.00022,2]
[423217341,1779940245000,-150.0,0.0002212,2]
[423217340,1779940245000,-1240.844,0.0002212,2]
[423217346,1779940245000,-478.44,0.00022266,2]
[423217351,1779940245000,-478.44,0.00022423,2]
[423217350,1779940245000,-1549.6,0.00022353,2]
[423217352,1779940245000,-155.36,0.00022435,2]
[423217353,1779940245000,-276.78,0.00022466,2]
[423217354,1779940245000,-1096.42,0.00022466,2]
[423217361,1779940245000,-320.49,0.00022691,2]
[423217360,1779940245000,-817.19,0.00022691,2]
[423217358,1779940245000,-478.44,0.00022659,2]
[423217355,1779940245000,-478.44,0.00022502,2]
[423217356,1779940245000,-478.44,0.00022581,2]
[423217292,1779940245000,-151.0,0.00021175,2]
[423217342,1779940245000,-418.0,0.0002212,2]
[423217325,1779940245000,-227.0,0.00022,2]
[423217345,1779940245000,-478.44,0.00022187,2]
[423217330,1779940245000,-450.0,0.00022,2]
[423217296,1779940245000,-151.0,0.00021175,2]
[423217333,1779940245000,-255.67,0.0002205,2]
[423217298,1779940245000,-151.0,0.00021175,2]
[423217301,1779940245000,-151.0,0.00021175,2]
[423217302,1779940245000,-151.0,0.00021175,2]
[423217300,1779940245000,-500.0,0.00021175,2]
[423217299,1779940245000,-151.0,0.00021175,2]
[423217305,1779940245000,-5680.49,0.00021273,2]
[423217303,1779940245000,-817.19,0.00021273,2]
[423217304,1779940245000,-320.49,0.00021273,2]
[423217306,1779940245000,-500.0,0.00021314,2]
[423217311,1779940245000,-200.0,0.00021723,2]
[423217310,1779940245000,-1862.0,0.00021673,2]
[423217309,1779940245000,-6474.79,0.0002137,2]
[423217307,1779940245000,-332.78855246,0.00021314,2]
[423217323,1779940245000,-159.10654966,0.00022,2]
[423217335,1779940245000,-1361.185,0.0002212,2]
[423217313,1779940245000,-5000.0,0.00021918,2]
[423217326,1779940245000,-675.0,0.00022,2]
[423217324,1779940245000,-1256.0,0.00022,2]
[423217320,1779940245000,-210699.72428643,0.00022,4]
[423217328,1779940245000,-1191.0,0.00022,2]
[423217321,1779940245000,-160.0,0.00022,2]
[423217322,1779940245000,-300.0,0.00022,2]
[423217317,1779940245000,-1544.0,0.00021991,2]
[423217315,1779940245000,-1544.0,0.00021991,2]
[423217314,1779940245000,-1544.0,0.00021991,2]
[423217319,1779940245000,-153.0,0.00021991,2]
[423217312,1779940245000,-2157.14243826,0.00021723,2]
[423217316,1779940245000,-1544.0,0.00021991,2]
[423217396,1779940246000,-227.0,0.00024,2]
[423217392,1779940246000,-200.0,0.00023915,2]
[423217389,1779940246000,-478.44396419,0.00023131,2]
[423217390,1779940246000,-200.0,0.00023367,2]
[423217393,1779940246000,-2494.55939288,0.00023915,2]
[423217398,1779940246000,-510.0,0.00024,2]
[423217397,1779940246000,-675.0,0.00024,2]
[423217404,1779940246000,-500.0,0.00024053,2]
[423217403,1779940246000,-450.0,0.0002401,2]
[423217399,1779940246000,-1191.0,0.00024,2]
[423217406,1779940246000,-256.0,0.000243,5]
[423217401,1779940246000,-500.0,0.00024,2]
[423217402,1779940246000,-437.4,0.0002401,2]
[423217394,1779940246000,-166.05,0.00024,7]
[423217405,1779940246000,-242.18,0.0002411,2]
[423217400,1779940246000,-184.0,0.00024,2]
[423217395,1779940246000,-1256.0,0.00024,2]
[423217365,1779940246000,-200.0,0.00022819,2]
[423217388,1779940246000,-478.44,0.00023053,2]
[423217407,1779940246000,-1549.6,0.00024324,2]
[423217363,1779940246000,-478.44,0.00022738,2]
[423217364,1779940246000,-478.44,0.00022817,2]
[423217362,1779940246000,-5680.49,0.00022691,2]
[423217366,1779940246000,-2319.72410669,0.00022819,2]
[423217376,1779940246000,-1256.0,0.00023,2]
[423217370,1779940246000,-676.28820665,0.000229,2]
[423217367,1779940246000,-478.44,0.00022895,2]
[423217381,1779940246000,-675.0,0.00023,2]
[423217379,1779940246000,-227.0,0.00023,2]
[423217372,1779940246000,-676.28820665,0.000229,2]
[423217385,1779940246000,-1191.0,0.00023,2]
[423217374,1779940246000,-478.44,0.00022974,2]
[423217383,1779940246000,-510.0,0.00023,2]
[423217368,1779940246000,-676.28820665,0.000229,2]
[423217387,1779940246000,-1228.0,0.00023,2]
[423217386,1779940246000,-184.0,0.00023,2]
[423217391,1779940246000,-2405.55389863,0.00023367,2]
[423217408,1779940246000,-200.0,0.00024463,2]
[423217419,1779940246000,-210.56846515,0.00025,2]
[423217411,1779940246000,-198.56,0.00024658,2]
[423217434,1779940246000,-4985.28785041,0.00025,2]
[423217438,1779940246000,-4547.69390979,0.00025,2]
[423217435,1779940246000,-2690.04224,0.00025,2]
[423217436,1779940246000,-2623.91502999,0.00025,2]
[423217437,1779940246000,-465.44773733,0.00025,2]
[423217433,1779940246000,-1017.108,0.0002212,2]
[423217439,1779940246000,-793.1136,0.00025,2]
[423217441,1779940246000,-4091.69996,0.00025,2]
[423217443,1779940246000,-1172.45,0.00025,2]
[423217444,1779940246000,-1341.74535061,0.00025,2]
[423217442,1779940246000,-13357.7116454,0.00025,2]
[423217445,1779940246000,-601.71500188,0.00025,2]
[423217440,1779940246000,-46368.99936693,0.00025,2]
[423217446,1779940246000,-52292.37995385,0.00025,2]
[423217447,1779940246000,-325.59000001,0.00025,2]
[423217432,1779940246000,-1392.98737841,0.00025,2]
[423217430,1779940246000,-3422.61268331,0.00025,2]
[423217429,1779940246000,-513282.57369824,0.00025,2]
[423217415,1779940246000,-179.2,0.00024658,2]
[423217410,1779940246000,-168.11,0.00024566,2]
[423217416,1779940246000,-175.95,0.00024658,2]
[423217412,1779940246000,-634.96,0.00024658,2]
[423217413,1779940246000,-1000.0,0.00024658,2]
[423217420,1779940246000,-1811.37446814,0.00025,2]
[423217409,1779940246000,-2586.85809042,0.00024463,2]
[423217417,1779940246000,-435.92,0.00024964,7]
[423217418,1779940246000,-1130.45375195,0.00025,2]
[423217414,1779940246000,-500.0,0.00024658,7]
[423217422,1779940246000,-540.0,0.00025,2]
[423217421,1779940246000,-1000.0,0.00025,2]
[423217425,1779940246000,-21796.10948775,0.00025,2]
[423217424,1779940246000,-3088.4174624,0.00025,2]
[423217423,1779940246000,-619.82909925,0.00025,2]
[423217426,1779940246000,-7234.32424484,0.00025,2]
[423217428,1779940246000,-169.8000364,0.00025,2]
[423217431,1779940246000,-1631.02005809,0.00025,2]
[423217427,1779940246000,-2233.05957326,0.00025,2]
[423217636,1779940296000,156.36,0.00028082,120]
[423217637,1779940304000,168.5,0.0002634,120]
[423217640,1779940335000,-500.0,0.00014794,2]
[423217641,1779940335000,-500.0,0.00014864,2]
[423217638,1779940335000,-7703.418,0.00013751,2]
[423217639,1779940335000,-2500.0,0.00014685,2]
[423217642,1779940355000,5000.0,0.00014896,2]
[423217643,1779940362000,11299.582,0.00013751,2]
[423217645,1779940382000,-21384.9852,0.00013751,2]
[423217644,1779940382000,-300.0,0.0001375,2]
[423217665,1779940404000,152.3655,0.00028082,120]
[423217727,1779940446000,152.18,0.00011281,2]
[423217728,1779940446000,152.18,0.00012691,2]
[423217729,1779940446000,152.18,0.00014101,2]
[423217752,1779940549000,500.0,0.00014794,2]
[423217765,1779940787000,805.12,0.00014873,2]
[423217764,1779940787000,805.12,0.00014794,2]
[423217769,1779940788000,805.12,0.00014999,2]
[423217768,1779940788000,805.12,0.00014999,2]
[423217767,1779940788000,805.12,0.00014998,2]
[423217766,1779940788000,805.12,0.00014994,2]
[423217770,1779940789000,805.12,0.00014999,2]
[423217772,1779940789000,805.12,0.00014999,2]
[423217771,1779940789000,805.12,0.00014999,2]
[423217775,1779940790000,805.12,0.00014999,2]
[423217774,1779940790000,805.12,0.00014999,2]
[423217773,1779940790000,805.12,0.00014999,2]
[423217778,1779940791000,805.12,0.00014999,2]
[423217777,1779940791000,805.12,0.00014999,2]
[423217776,1779940791000,805.12,0.00014999,2]
[423217779,1779940792000,805.12,0.00014999,2]
[423217781,1779940792000,805.12,0.00014999,2]
[423217780,1779940792000,805.12,0.00014999,2]
[423217784,1779940793000,805.12,0.00014999,2]
[423217783,1779940793000,805.12,0.00014999,2]
[423217782,1779940793000,805.12,0.00014999,2]
[423217786,1779940794000,805.12,0.00014999,2]
[423217785,1779940794000,805.12,0.00014999,2]
[423217787,1779940795000,805.2508362,0.00014999,2]
[423217788,1779940822000,1985.04,0.00014794,2]
[423217790,1779940822000,1985.04,0.00014994,2]
[423217789,1779940822000,1985.04,0.00014873,2]
[423217791,1779940822000,1985.04,0.00014998,2]
[423217794,1779940823000,1985.04,0.00014999,2]
[423217793,1779940823000,1985.04,0.00014999,2]
[423217792,1779940823000,1985.04,0.00014999,2]
[423217795,1779940824000,1985.04,0.00014999,2]
[423217799,1779940825000,1985.04,0.00014999,2]
[423217798,1779940825000,1985.04,0.00014999,2]
[423217797,1779940825000,1985.04,0.00014999,2]
[423217796,1779940825000,1985.04,0.00014999,2]
[423217800,1779940826000,1985.04,0.00014999,2]
[423217802,1779940827000,1985.04,0.00014999,2]
[423217801,1779940827000,1985.04,0.00014999,2]
[423217803,1779940828000,1985.04,0.00014999,2]
[423217804,1779940828000,1985.04,0.00014999,2]
[423217806,1779940828000,1985.04,0.00014999,2]
[423217805,1779940828000,1985.04,0.00014999,2]
[423217807,1779940829000,1985.04,0.00014999,2]
[423217808,1779940829000,1985.04,0.00014999,2]
[423217811,1779940830000,1985.24216464,0.00014999,2]
[423217810,1779940830000,1985.04,0.00014999,2]
[423217809,1779940830000,1985.04,0.00014999,2]
[423217813,1779941165000,151.71139133,0.00014999,2]
[423217817,1779941248000,-201.74402378,0.00015622,2]
[423217818,1779941248000,-59.54940601,0.00015809,2]
[423217815,1779941248000,-300.0,0.00015539,2]
[423217816,1779941248000,-300.0,0.00015567,2]
[423217814,1779941248000,-152.18,0.00015511,2]
[423217819,1779941340000,1000.0,0.00028081,120]
[423217832,1779941432000,-112.40373474,0.00016184,2]
[423217829,1779941432000,-240.45059399,0.00015992,2]
[423217834,1779941432000,-166.66,0.00016404,2]
[423217827,1779941432000,-464.29087844,0.00015952,2]
[423217831,1779941432000,-82.31940313,0.00016184,2]
[423217838,1779941432000,-841.05229684,0.0001672,2]
[423217835,1779941432000,-1083.4,0.00016438,2]
[423217828,1779941432000,-633.08058956,0.00015952,2]
[423217836,1779941432000,-168.11,0.00016712,2]
[423217833,1779941432000,-163.53,0.00016256,2]
[423217837,1779941432000,-300.0,0.0001672,2]
[423217830,1779941432000,-300.0,0.00016032,2]
[423217879,1779941438000,-648.31496882,0.00017373,2]
[423217873,1779941438000,-166.66,0.00017095,2]
[423217872,1779941438000,-160.12153149,0.00017062,2]
[423217878,1779941438000,-2000.0,0.00017372,2]
[423217874,1779941438000,-500.0,0.00017118,2]
[423217876,1779941438000,-8407.1,0.00017266,2]
[423217877,1779941438000,-194.72313786,0.0001729,2]
[423217881,1779941438000,-2500.0,0.0001739,2]
[423217880,1779941438000,-300.0,0.0001739,2]
[423217882,1779941438000,-2500.0,0.0001739,2]
[423217883,1779941438000,-2500.0,0.0001739,2]
[423217884,1779941438000,-2500.0,0.0001739,2]
[423217885,1779941438000,-2500.0,0.0001739,2]
[423217870,1779941438000,-304.0,0.00016912,2]
[423217889,1779941438000,-1051.32,0.00017466,2]
[423217875,1779941438000,-401.0,0.00017118,2]
[423217871,1779941438000,-152.18,0.00016921,2]
[423217852,1779941438000,-160.0,0.00016305,2]
[423217868,1779941438000,-150.99,0.00016721,2]
[423217890,1779941438000,-300.0,0.00017547,2]
[423217853,1779941438000,-214.68915625,0.0001672,2]
[423217854,1779941438000,-144.25854691,0.0001672,2]
[423217855,1779941438000,-138.38998588,0.0001672,2]
[423217857,1779941438000,-500.0,0.0001672,2]
[423217867,1779941438000,-2059.26,0.00016721,2]
[423217856,1779941438000,-361.61001412,0.0001672,2]
[423217869,1779941438000,-166.66,0.0001675,2]
[423217858,1779941438000,-500.0,0.0001672,2]
[423217859,1779941438000,-397.85267207,0.0001672,2]
[423217865,1779941438000,-1630.3,0.00016721,2]
[423217864,1779941438000,-9999.99,0.00016721,2]
[423217866,1779941438000,-9999.99,0.00016721,2]
[423217861,1779941438000,-151.34,0.00016721,81]
[423217863,1779941438000,-557.15,0.00016721,2]
[423217862,1779941438000,-8831.49,0.00016721,2]
[423217860,1779941438000,-151.34,0.00016721,77]
[423217888,1779941438000,-166.66,0.00017441,2]
[423217892,1779941438000,-418.35,0.00017747,2]
[423217886,1779941438000,-300.0,0.0001739,2]
[423217910,1779941438000,-172.92773901,0.000184,2]
[423217915,1779941438000,-418.35,0.00018634,2]
[423217911,1779941438000,-1083.4,0.0001841,2]
[423217914,1779941438000,-432.1314599,0.0001852,2]
[423217912,1779941438000,-215.50460005,0.00018475,2]
[423217917,1779941438000,-2000.0,0.00018761,2]
[423217928,1779941438000,-181.73,0.00018781,2]
[423217913,1779941438000,-8420.1533264,0.0001852,2]
[423217926,1779941438000,-169.6454295,0.00018761,2]
[423217916,1779941438000,-666.70417893,0.00018761,2]
[423217930,1779941438000,-163.9,0.00018978,2]
[423217922,1779941438000,-457.01872294,0.00018761,2]